[Event "*** Titled Tuesday 3|2 Blitz"]
[Site "Chess.com"]
[Date "2016.10.04"]
[Round "4"]
[White "FearlessKing64"]
[Black "johnathan113"]
[Result "0-1"]
[WhiteElo "2187"]
[BlackElo "2289"]
[TimeControl "180+2"]
[EndTime "17:48:00 PDT"]
[Termination "johnathan113 won by resignation"]

1. e4 {[%clk 0:03:01.9]} 1... c5 {[%clk 0:03:01.1]} 2. Nf3 {[%clk 0:03:02.5]}
2... g6 {[%clk 0:03:02.7]} 3. c4 {[%clk 0:03:03.1]} 3... Nc6 {[%clk 0:03:03.6]}
4. d4 {[%clk 0:03:04.4]} 4... cxd4 {[%clk 0:03:05.5]} 5. Nxd4 {[%clk 0:03:05.8]}
5... Nf6 {[%clk 0:03:06.5]} 6. Nc3 {[%clk 0:03:06.6]} 6... Bg7 {[%clk 0:03:05]}
7. Be3 {[%clk 0:03:07.1]} 7... O-O {[%clk 0:03:05.8]} 8. Be2 {[%clk 0:03:07.7]}
8... b6 {[%clk 0:03:07.3]} 9. O-O {[%clk 0:03:07.9]} 9... Bb7 {[%clk 0:03:08.8]}
10. f3 {[%clk 0:03:08.7]} 10... e6 {[%clk 0:03:10.1]} 11. Qd2 {[%clk 0:03:09.9]}
11... d5 {[%clk 0:03:10.9]} 12. cxd5 {[%clk 0:03:08]} 12... exd5 {[%clk
0:03:12.8]} 13. Nxc6 {[%clk 0:03:09.1]} 13... Bxc6 {[%clk 0:03:13.8]} 14. e5
{[%clk 0:03:10.4]} 14... Ne8 {[%clk 0:03:15]} 15. Bd4 {[%clk 0:03:00.3]} 15...
Nc7 {[%clk 0:03:12.4]} 16. f4 {[%clk 0:02:56.7]} 16... Ne6 {[%clk 0:03:13.1]}
17. Bb5 {[%clk 0:02:53.4]} 17... Qd7 {[%clk 0:03:07.4]} 18. Bxc6 {[%clk
0:02:46.6]} 18... Qxc6 {[%clk 0:03:09.3]} 19. Rad1 {[%clk 0:02:46.9]} 19... Rad8
{[%clk 0:03:08.5]} 20. Kh1 {[%clk 0:02:40.5]} 20... Rfe8 {[%clk 0:02:53.8]} 21.
Ne2 {[%clk 0:02:38.2]} 21... Qd7 {[%clk 0:02:37.8]} 22. Qe3 {[%clk 0:02:28.5]}
22... Qa4 {[%clk 0:02:30.7]} 23. a3 {[%clk 0:02:26.5]} 23... f6 {[%clk
0:02:25.7]} 24. Nc3 {[%clk 0:02:22]} 24... Qc4 {[%clk 0:02:16.6]} 25. exf6
{[%clk 0:02:11.8]} 25... Nxd4 {[%clk 0:02:17.3]} 26. Qxd4 {[%clk 0:02:06.9]}
26... Qxd4 {[%clk 0:02:18.5]} 27. Rxd4 {[%clk 0:02:07.8]} 27... Bxf6 {[%clk
0:02:20.4]} 28. Rxd5 {[%clk 0:02:08.6]} 28... Rxd5 {[%clk 0:02:17.4]} 29. Nxd5
{[%clk 0:02:09.3]} 29... Bxb2 {[%clk 0:02:19.3]} 30. a4 {[%clk 0:02:04.7]} 30...
Re4 {[%clk 0:02:18.3]} 31. f5 {[%clk 0:01:50.9]} 31... gxf5 {[%clk 0:02:17.2]}
32. h3 {[%clk 0:01:48.7]} 32... Rxa4 {[%clk 0:02:16.8]} 33. Ne7+ {[%clk
0:01:47.8]} 33... Kf7 {[%clk 0:02:15.7]} 34. Nxf5 {[%clk 0:01:47.4]} 34... Ra1
{[%clk 0:02:16.9]} 35. Rxa1 {[%clk 0:01:46]} 35... Bxa1 {[%clk 0:02:18.8]} 36.
Kg1 {[%clk 0:01:45.7]} 36... Ke6 {[%clk 0:02:18.6]} 37. Ng3 {[%clk 0:01:38.3]}
37... a5 {[%clk 0:02:19.5]} 38. Kf1 {[%clk 0:01:39.6]} 38... a4 {[%clk
0:02:17.8]} 39. Ke2 {[%clk 0:01:41.1]} 39... a3 {[%clk 0:02:19]} 40. Kd3 {[%clk
0:01:39.8]} 40... Be5 {[%clk 0:02:19.7]} 0-1

[Event "*** Titled Tuesday 3|2 Blitz"]
[Site "Chess.com"]
[Date "2016.10.04"]
[Round "4"]
[White "Mornar1951"]
[Black "awb2000"]
[Result "1-0"]
[WhiteElo "2586"]
[BlackElo "2430"]
[TimeControl "180+2"]
[EndTime "17:48:09 PDT"]
[Termination "Mornar1951 won by resignation"]

1. d4 {[%clk 0:03:02]} 1... Nf6 {[%clk 0:02:59.6]} 2. c4 {[%clk 0:03:03]} 2...
e6 {[%clk 0:03:00.4]} 3. g3 {[%clk 0:03:04.3]} 3... c5 {[%clk 0:02:59.2]} 4. Nf3
{[%clk 0:03:04.7]} 4... cxd4 {[%clk 0:02:59.1]} 5. Nxd4 {[%clk 0:03:06.6]} 5...
Be7 {[%clk 0:03:00]} 6. Bg2 {[%clk 0:03:06.9]} 6... O-O {[%clk 0:03:00.4]} 7.
O-O {[%clk 0:03:03.9]} 7... Nc6 {[%clk 0:02:54.9]} 8. Nc3 {[%clk 0:03:04.2]}
8... a6 {[%clk 0:02:45.5]} 9. b3 {[%clk 0:03:05.1]} 9... Qc7 {[%clk 0:02:45.2]}
10. Bb2 {[%clk 0:03:06.2]} 10... d6 {[%clk 0:02:45.9]} 11. Rc1 {[%clk
0:03:07.4]} 11... Nxd4 {[%clk 0:02:42.2]} 12. Qxd4 {[%clk 0:03:09.3]} 12... Bd7
{[%clk 0:02:40.8]} 13. Rfd1 {[%clk 0:03:10.3]} 13... Rfd8 {[%clk 0:02:30.1]} 14.
e3 {[%clk 0:02:42.9]} 14... Rac8 {[%clk 0:02:28.8]} 15. Qa7 {[%clk 0:02:39.4]}
15... Rb8 {[%clk 0:02:10.3]} 16. b4 {[%clk 0:02:16.3]} 16... Be8 {[%clk
0:01:47.6]} 17. a3 {[%clk 0:02:11.5]} 17... Nd7 {[%clk 0:01:41]} 18. Qd4 {[%clk
0:01:57.2]} 18... Ne5 {[%clk 0:01:26.7]} 19. f4 {[%clk 0:01:47.6]} 19... Nc6
{[%clk 0:01:04.2]} 20. Bxc6 {[%clk 0:01:24.7]} 20... Qxc6 {[%clk 0:01:05]} 21.
Nd5 {[%clk 0:01:24.2]} 21... Bf8 {[%clk 0:01:05.9]} 22. Ne7+ {[%clk 0:01:24.8]}
1-0

[Event "*** Titled Tuesday 3|2 Blitz"]
[Site "Chess.com"]
[Date "2016.10.04"]
[Round "4"]
[White "RobertoJBM"]
[Black "Newlight1"]
[Result "0-1"]
[WhiteElo "2464"]
[BlackElo "2518"]
[TimeControl "180+2"]
[EndTime "17:48:47 PDT"]
[Termination "Newlight1 won on time"]

1. d4 {[%clk 0:03:01.9]} 1... Nf6 {[%clk 0:02:29.4]} 2. c4 {[%clk 0:03:00.4]}
2... c5 {[%clk 0:02:30.1]} 3. d5 {[%clk 0:03:01.2]} 3... e6 {[%clk 0:02:32]} 4.
Nc3 {[%clk 0:03:02.1]} 4... exd5 {[%clk 0:02:33.3]} 5. cxd5 {[%clk 0:03:04]}
5... d6 {[%clk 0:02:35.2]} 6. e4 {[%clk 0:03:04.9]} 6... g6 {[%clk 0:02:37.1]}
7. Bd3 {[%clk 0:03:05.8]} 7... Bg7 {[%clk 0:02:39]} 8. h3 {[%clk 0:03:07.4]}
8... O-O {[%clk 0:02:40.4]} 9. Nf3 {[%clk 0:03:09]} 9... b5 {[%clk 0:02:41.9]}
10. Bxb5 {[%clk 0:03:09.1]} 10... Nxe4 {[%clk 0:02:42.7]} 11. Nxe4 {[%clk
0:03:11]} 11... Qa5+ {[%clk 0:02:44.1]} 12. Nfd2 {[%clk 0:03:12.6]} 12... Qxb5
{[%clk 0:02:45.2]} 13. Nxd6 {[%clk 0:03:14.2]} 13... Qa6 {[%clk 0:02:46.8]} 14.
N2c4 {[%clk 0:03:15.7]} 14... Nd7 {[%clk 0:02:45.9]} 15. O-O {[%clk 0:03:17.1]}
15... Ne5 {[%clk 0:02:47.6]} 16. Nxc8 {[%clk 0:03:14.4]} 16... Raxc8 {[%clk
0:02:19.3]} 17. Nxe5 {[%clk 0:03:12.4]} 17... Bxe5 {[%clk 0:02:21.2]} 18. Re1
{[%clk 0:03:10.2]} 18... Rfe8 {[%clk 0:02:18.6]} 19. Kh1 {[%clk 0:02:54.2]}
19... c4 {[%clk 0:02:15.7]} 20. Qf3 {[%clk 0:02:51.8]} 20... Qb5 {[%clk
0:02:04.4]} 21. Re2 {[%clk 0:02:51.8]} 21... c3 {[%clk 0:02:03.7]} 22. a4 {[%clk
0:02:44.2]} 22... Qb3 {[%clk 0:01:57.1]} 23. bxc3 {[%clk 0:02:32.9]} 23... Qd1+
{[%clk 0:01:53]} 0-1

[Event "*** Titled Tuesday 3|2 Blitz"]
[Site "Chess.com"]
[Date "2016.10.04"]
[Round "4"]
[White "Opening_Prep"]
[Black "MattyDPerrine"]
[Result "0-1"]
[WhiteElo "2143"]
[BlackElo "2250"]
[TimeControl "180+2"]
[EndTime "17:50:00 PDT"]
[Termination "MattyDPerrine won by resignation"]

1. d4 {[%clk 0:03:02]} 1... Nf6 {[%clk 0:02:50.7]} 2. c4 {[%clk 0:03:02.2]} 2...
c5 {[%clk 0:02:51.6]} 3. d5 {[%clk 0:02:38.7]} 3... b5 {[%clk 0:02:43.2]} 4.
cxb5 {[%clk 0:02:39.8]} 4... a6 {[%clk 0:02:44.1]} 5. b6 {[%clk 0:02:40.6]} 5...
a5 {[%clk 0:02:43.5]} 6. Nc3 {[%clk 0:02:40.5]} 6... Ba6 {[%clk 0:02:44.5]} 7.
g3 {[%clk 0:02:05.1]} 7... d6 {[%clk 0:02:44.6]} 8. Bg2 {[%clk 0:01:56.9]} 8...
g6 {[%clk 0:02:45.1]} 9. Nf3 {[%clk 0:01:57.6]} 9... Bg7 {[%clk 0:02:45.8]} 10.
O-O {[%clk 0:01:58.6]} 10... O-O {[%clk 0:02:47.3]} 11. Re1 {[%clk 0:01:52.1]}
11... Nbd7 {[%clk 0:02:48.1]} 12. e4 {[%clk 0:01:47.8]} 12... Ng4 {[%clk
0:02:48.7]} 13. Bf4 {[%clk 0:01:17.9]} 13... Qxb6 {[%clk 0:02:39.5]} 14. Qc2
{[%clk 0:01:04.8]} 14... Rfb8 {[%clk 0:02:19.3]} 15. Rab1 {[%clk 0:01:04.4]}
15... Nge5 {[%clk 0:02:16.1]} 16. Nxe5 {[%clk 0:00:45.7]} 16... Nxe5 {[%clk
0:02:16.9]} 17. Red1 {[%clk 0:00:45.6]} 17... Qb4 {[%clk 0:01:39]} 18. Bg5
{[%clk 0:00:32.8]} 18... Bd3 {[%clk 0:01:13.5]} 19. Rxd3 {[%clk 0:00:19.6]}
19... Nxd3 {[%clk 0:01:15.4]} 20. a3 {[%clk 0:00:13.1]} 20... Qb3 {[%clk
0:01:01.5]} 21. Qxd3 {[%clk 0:00:13.4]} 21... Bxc3 {[%clk 0:01:01.3]} 22. Bxe7
{[%clk 0:00:14.2]} 22... Be5 {[%clk 0:00:48.7]} 23. Qxb3 {[%clk 0:00:08.4]}
23... Rxb3 {[%clk 0:00:50.6]} 24. f4 {[%clk 0:00:09.9]} 24... Bxb2 {[%clk
0:00:40.6]} 25. Bxd6 {[%clk 0:00:10.7]} 25... Bd4+ {[%clk 0:00:41.6]} 0-1

[Event "*** Titled Tuesday 3|2 Blitz"]
[Site "Chess.com"]
[Date "2016.10.04"]
[Round "4"]
[White "Fins0905"]
[Black "gmshanmeruga"]
[Result "0-1"]
[WhiteElo "2458"]
[BlackElo "2294"]
[TimeControl "180+2"]
[EndTime "17:50:14 PDT"]
[Termination "gmshanmeruga won by resignation"]

1. Nf3 {[%clk 0:03:02]} 1... Nf6 {[%clk 0:02:58.4]} 2. g3 {[%clk 0:03:03.1]}
2... d6 {[%clk 0:02:53.5]} 3. d4 {[%clk 0:03:00.3]} 3... g6 {[%clk 0:02:53.8]}
4. Bg2 {[%clk 0:02:53.8]} 4... Bg7 {[%clk 0:02:54.9]} 5. O-O {[%clk 0:02:53.9]}
5... O-O {[%clk 0:02:56.6]} 6. b3 {[%clk 0:02:54.6]} 6... c5 {[%clk 0:02:54.5]}
7. c4 {[%clk 0:02:55.2]} 7... Nc6 {[%clk 0:02:48.8]} 8. Bb2 {[%clk 0:02:55.7]}
8... cxd4 {[%clk 0:02:45.5]} 9. Nxd4 {[%clk 0:02:56.2]} 9... Bd7 {[%clk
0:02:45.9]} 10. Nc3 {[%clk 0:02:54.9]} 10... Qa5 {[%clk 0:02:42.9]} 11. e3
{[%clk 0:02:14.8]} 11... Rac8 {[%clk 0:02:38.6]} 12. Qd2 {[%clk 0:02:06.6]}
12... a6 {[%clk 0:02:32.2]} 13. Rfd1 {[%clk 0:02:01.7]} 13... Nxd4 {[%clk
0:02:29.3]} 14. Qxd4 {[%clk 0:01:45.3]} 14... Bc6 {[%clk 0:02:25.6]} 15. Nd5
{[%clk 0:01:21.9]} 15... Bxd5 {[%clk 0:02:14.1]} 16. Bxd5 {[%clk 0:01:23]} 16...
b5 {[%clk 0:02:05.9]} 17. cxb5 {[%clk 0:01:11.2]} 17... Rc2 {[%clk 0:02:02.1]}
18. b4 {[%clk 0:00:40.9]} 18... Qxb5 {[%clk 0:01:50.3]} 19. Bb3 {[%clk
0:00:33.4]} 19... Nh5 {[%clk 0:01:43.5]} 20. Bxc2 {[%clk 0:00:30.2]} 20... Bxd4
{[%clk 0:01:40.5]} 21. Rxd4 {[%clk 0:00:31.3]} 21... Qe2 {[%clk 0:01:36]} 22.
Rc1 {[%clk 0:00:19.5]} 22... Rc8 {[%clk 0:01:33.1]} 23. Bb3 {[%clk 0:00:15.4]}
23... Rxc1+ {[%clk 0:01:28.9]} 24. Bxc1 {[%clk 0:00:16.4]} 24... Qe1+ {[%clk
0:01:28.2]} 25. Kg2 {[%clk 0:00:17.8]} 25... Qxc1 {[%clk 0:01:27.2]} 26. Rc4
{[%clk 0:00:18.5]} 26... Qa3 {[%clk 0:01:18.2]} 27. Rc7 {[%clk 0:00:17.5]} 27...
e6 {[%clk 0:01:15.1]} 28. Rb7 {[%clk 0:00:16.2]} 28... a5 {[%clk 0:01:09.5]} 29.
b5 {[%clk 0:00:16.7]} 29... a4 {[%clk 0:01:09.4]} 30. Bc4 {[%clk 0:00:17.7]}
30... d5 {[%clk 0:01:08.2]} 31. Be2 {[%clk 0:00:18.1]} 31... Qxa2 {[%clk
0:01:07.8]} 32. Bf1 {[%clk 0:00:17.5]} 32... Nf6 {[%clk 0:01:06.5]} 33. b6
{[%clk 0:00:17.9]} 33... Ne4 {[%clk 0:01:05.7]} 34. Rb8+ {[%clk 0:00:16.8]}
34... Kg7 {[%clk 0:01:06.4]} 35. b7 {[%clk 0:00:12.6]} 35... Qxf2+ {[%clk
0:01:02.3]} 0-1

[Event "*** Titled Tuesday 3|2 Blitz"]
[Site "Chess.com"]
[Date "2016.10.04"]
[Round "4"]
[White "KNVB"]
[Black "spirals5"]
[Result "1-0"]
[WhiteElo "2483"]
[BlackElo "2263"]
[TimeControl "180+2"]
[EndTime "17:50:35 PDT"]
[Termination "KNVB won on time"]

1. d4 {[%clk 0:03:02]} 1... d5 {[%clk 0:02:59.3]} 2. c4 {[%clk 0:03:03.7]} 2...
e6 {[%clk 0:03:00]} 3. Nc3 {[%clk 0:03:05.4]} 3... Nf6 {[%clk 0:03:00.6]} 4.
cxd5 {[%clk 0:03:06.6]} 4... exd5 {[%clk 0:03:01.3]} 5. Bg5 {[%clk 0:03:08.1]}
5... Be7 {[%clk 0:03:02]} 6. e3 {[%clk 0:03:09.7]} 6... h6 {[%clk 0:03:02.8]} 7.
Bh4 {[%clk 0:03:10.7]} 7... Nbd7 {[%clk 0:03:03.1]} 8. Bd3 {[%clk 0:03:11.9]}
8... O-O {[%clk 0:03:03.8]} 9. Nge2 {[%clk 0:03:12.9]} 9... b6 {[%clk
0:03:02.4]} 10. O-O {[%clk 0:03:14.1]} 10... Bb7 {[%clk 0:03:03.6]} 11. Rc1
{[%clk 0:03:14.8]} 11... c5 {[%clk 0:03:04.4]} 12. f3 {[%clk 0:03:15.5]} 12...
a6 {[%clk 0:03:04.7]} 13. a3 {[%clk 0:03:16]} 13... b5 {[%clk 0:03:05.3]} 14.
dxc5 {[%clk 0:03:16.4]} 14... Nxc5 {[%clk 0:03:05.8]} 15. Bb1 {[%clk 0:03:17.6]}
15... Re8 {[%clk 0:03:03.7]} 16. Bf2 {[%clk 0:03:17.3]} 16... Bf8 {[%clk
0:03:00.1]} 17. Ba2 {[%clk 0:03:15.9]} 17... Rc8 {[%clk 0:02:51.5]} 18. Nf4
{[%clk 0:03:16.2]} 18... Na4 {[%clk 0:02:40.8]} 19. Qd2 {[%clk 0:02:05.3]} 19...
Nxc3 {[%clk 0:02:40.3]} 20. Rxc3 {[%clk 0:02:07.2]} 20... Rxc3 {[%clk
0:02:38.1]} 21. Qxc3 {[%clk 0:02:09.1]} 21... Qe7 {[%clk 0:02:29.7]} 22. Rd1
{[%clk 0:01:56.5]} 22... Rc8 {[%clk 0:02:23.8]} 23. Qd2 {[%clk 0:01:47.6]} 23...
Qe5 {[%clk 0:01:53]} 24. Bb3 {[%clk 0:01:24.1]} 24... g5 {[%clk 0:01:43.2]} 25.
Nd3 {[%clk 0:01:07.9]} 25... Qf5 {[%clk 0:01:43]} 26. h3 {[%clk 0:01:00.4]}
26... Bd6 {[%clk 0:01:31.7]} 27. Nb4 {[%clk 0:00:33.2]} 27... Bxb4 {[%clk
0:01:07.9]} 28. Qxb4 {[%clk 0:00:28.1]} 28... Qe5 {[%clk 0:00:53.6]} 29. Qd4
{[%clk 0:00:23.8]} 1-0

[Event "*** Titled Tuesday 3|2 Blitz"]
[Site "Chess.com"]
[Date "2016.10.04"]
[Round "4"]
[White "brightthunder"]
[Black "rithwik2002"]
[Result "0-1"]
[WhiteElo "2357"]
[BlackElo "1977"]
[TimeControl "180+2"]
[EndTime "17:50:50 PDT"]
[Termination "rithwik2002 won by resignation"]

1. e4 {[%clk 0:03:01.9]} 1... c5 {[%clk 0:02:59.9]} 2. Nf3 {[%clk 0:03:01.3]}
2... d6 {[%clk 0:02:58.4]} 3. d4 {[%clk 0:03:01.9]} 3... cxd4 {[%clk 0:03:00.3]}
4. Nxd4 {[%clk 0:03:03.1]} 4... Nf6 {[%clk 0:02:57.2]} 5. Nc3 {[%clk 0:03:04.6]}
5... a6 {[%clk 0:02:58.9]} 6. f3 {[%clk 0:03:05.5]} 6... e5 {[%clk 0:03:00.1]}
7. Nb3 {[%clk 0:03:06.2]} 7... Be6 {[%clk 0:03:01.8]} 8. Be3 {[%clk 0:03:07.3]}
8... Be7 {[%clk 0:03:03.5]} 9. Qd2 {[%clk 0:03:07.8]} 9... O-O {[%clk 0:03:05]}
10. O-O-O {[%clk 0:03:08.2]} 10... a5 {[%clk 0:03:05.4]} 11. a4 {[%clk
0:03:07.9]} 11... Nc6 {[%clk 0:03:02.8]} 12. g4 {[%clk 0:03:07.3]} 12... Nb4
{[%clk 0:02:57.4]} 13. Kb1 {[%clk 0:03:07.9]} 13... Rc8 {[%clk 0:02:54.6]} 14.
g5 {[%clk 0:03:08.5]} 14... Nd7 {[%clk 0:02:53.6]} 15. f4 {[%clk 0:03:07.7]}
15... exf4 {[%clk 0:02:54.8]} 16. Bxf4 {[%clk 0:03:09.5]} 16... Ne5 {[%clk
0:02:55.4]} 17. h4 {[%clk 0:03:06]} 17... Qb6 {[%clk 0:02:19.7]} 18. Bb5 {[%clk
0:02:53.4]} 18... Bg4 {[%clk 0:02:15.4]} 19. Rdf1 {[%clk 0:02:41.6]} 19... Nc4
{[%clk 0:02:06.9]} 20. Bxc4 {[%clk 0:02:36.9]} 20... Rxc4 {[%clk 0:02:08.8]} 21.
Be3 {[%clk 0:02:14.9]} 21... Qc7 {[%clk 0:02:03.8]} 22. Nd4 {[%clk 0:02:08.6]}
22... d5 {[%clk 0:01:57.9]} 23. Ndb5 {[%clk 0:02:06.1]} 23... Qd7 {[%clk
0:01:55.4]} 24. exd5 {[%clk 0:01:45.5]} 24... Rd8 {[%clk 0:01:55.8]} 25. Bb6
{[%clk 0:01:40.1]} 25... Nxd5 {[%clk 0:01:52.1]} 26. Nxd5 {[%clk 0:01:04]} 26...
Qxd5 {[%clk 0:01:54]} 27. Qe3 {[%clk 0:01:03.8]} 27... Rd7 {[%clk 0:01:48]} 28.
b3 {[%clk 0:00:56.6]} 28... Rc8 {[%clk 0:01:46.3]} 29. Qf4 {[%clk 0:00:49.3]}
29... Be2 {[%clk 0:01:40.9]} 30. Re1 {[%clk 0:00:46.2]} 30... Bd3 {[%clk
0:01:16.1]} 31. Nd4 {[%clk 0:00:28.9]} 31... Bxc2+ {[%clk 0:01:11.7]} 32. Kb2
{[%clk 0:00:30.2]} 32... Bb4 {[%clk 0:01:09.4]} 33. Re5 {[%clk 0:00:28.3]} 33...
Bc3+ {[%clk 0:01:01.3]} 34. Ka2 {[%clk 0:00:28]} 34... Qg2 {[%clk 0:00:55.6]}
35. Rh2 {[%clk 0:00:20.2]} 35... Bb1+ {[%clk 0:00:49.8]} 36. Kxb1 {[%clk
0:00:20.2]} 36... Qg1+ {[%clk 0:00:47.5]} 37. Qc1 {[%clk 0:00:15.2]} 37... Qxc1+
{[%clk 0:00:46.9]} 38. Kxc1 {[%clk 0:00:16.8]} 38... Bxd4+ {[%clk 0:00:45.1]}
0-1

[Event "*** Titled Tuesday 3|2 Blitz"]
[Site "Chess.com"]
[Date "2016.10.04"]
[Round "4"]
[White "Shivagami"]
[Black "jcibarra"]
[Result "0-1"]
[WhiteElo "1909"]
[BlackElo "2676"]
[TimeControl "180+2"]
[EndTime "17:50:52 PDT"]
[Termination "jcibarra won by resignation"]

1. e4 {[%clk 0:03:02]} 1... c5 {[%clk 0:03:00.9]} 2. f4 {[%clk 0:03:01.5]} 2...
d5 {[%clk 0:03:01.2]} 3. exd5 {[%clk 0:03:01]} 3... Nf6 {[%clk 0:03:01.8]} 4.
Bb5+ {[%clk 0:02:59.6]} 4... Nbd7 {[%clk 0:03:02.9]} 5. c4 {[%clk 0:02:57.6]}
5... g6 {[%clk 0:03:02.7]} 6. Nf3 {[%clk 0:02:57.4]} 6... Bg7 {[%clk 0:03:03.2]}
7. O-O {[%clk 0:02:57.9]} 7... O-O {[%clk 0:03:03.5]} 8. Nc3 {[%clk 0:02:57.2]}
8... a6 {[%clk 0:03:04.7]} 9. Bxd7 {[%clk 0:02:57.9]} 9... Bxd7 {[%clk
0:03:03.3]} 10. Ne5 {[%clk 0:02:57.2]} 10... e6 {[%clk 0:03:02.1]} 11. dxe6
{[%clk 0:02:43.2]} 11... Bxe6 {[%clk 0:03:02.7]} 12. d3 {[%clk 0:02:43.5]} 12...
Qd4+ {[%clk 0:02:56.9]} 13. Kh1 {[%clk 0:02:42.1]} 13... Nd7 {[%clk 0:02:55.2]}
14. Nxd7 {[%clk 0:02:37.9]} 14... Bxd7 {[%clk 0:02:56.4]} 15. Nd5 {[%clk
0:02:28.4]} 15... Rae8 {[%clk 0:02:52.8]} 16. Rb1 {[%clk 0:02:03]} 16... Bf5
{[%clk 0:02:43.7]} 17. Re1 {[%clk 0:01:23.4]} 17... Qxd3 {[%clk 0:02:41.2]} 18.
Ra1 {[%clk 0:01:19.9]} 18... Bg4 {[%clk 0:02:21]} 19. Qd2 {[%clk 0:00:52.4]}
19... Qxc4 {[%clk 0:02:03.9]} 20. Ne3 {[%clk 0:00:42.9]} 20... Qxf4 {[%clk
0:01:54]} 21. Nxg4 {[%clk 0:00:34.4]} 21... Qxg4 {[%clk 0:01:51.7]} 22. Qf2
{[%clk 0:00:31.6]} 22... Bd4 {[%clk 0:01:40.2]} 23. Be3 {[%clk 0:00:31.3]} 23...
Rxe3 {[%clk 0:01:34.7]} 24. Rxe3 {[%clk 0:00:31.3]} 24... Qg5 {[%clk 0:01:36]}
25. Rg3 {[%clk 0:00:24.7]} 25... Bxf2 {[%clk 0:01:29.6]} 26. Rxg5 {[%clk
0:00:24.3]} 26... f5 {[%clk 0:01:31.2]} 27. Rf1 {[%clk 0:00:21.5]} 27... Bh4
{[%clk 0:01:29.9]} 28. Rg3 {[%clk 0:00:19.6]} 28... Bxg3 {[%clk 0:01:30.9]} 29.
hxg3 {[%clk 0:00:21.4]} 29... Rd8 {[%clk 0:01:30.9]} 30. Rf2 {[%clk 0:00:22.1]}
30... Kf7 {[%clk 0:01:30.8]} 31. g4 {[%clk 0:00:22]} 31... Rd5 {[%clk
0:01:30.1]} 32. gxf5 {[%clk 0:00:23.3]} 32... Rxf5 {[%clk 0:01:31.7]} 33. Rc2
{[%clk 0:00:24.1]} 33... Ke6 {[%clk 0:01:32.3]} 34. Kg1 {[%clk 0:00:24.8]} 34...
b5 {[%clk 0:01:31.3]} 35. g3 {[%clk 0:00:23.9]} 35... h5 {[%clk 0:01:30.5]} 36.
Kg2 {[%clk 0:00:24.9]} 36... c4 {[%clk 0:01:32]} 37. b3 {[%clk 0:00:24.3]} 37...
Rc5 {[%clk 0:01:32.3]} 38. Kf3 {[%clk 0:00:23.5]} 38... Kf5 {[%clk 0:01:28.8]}
39. Rc3 {[%clk 0:00:21.5]} 39... b4 {[%clk 0:01:20.1]} 40. Rxc4 {[%clk
0:00:21.1]} 40... Rxc4 {[%clk 0:01:21.2]} 41. bxc4 {[%clk 0:00:22.8]} 41... Ke5
{[%clk 0:01:22.5]} 42. Ke3 {[%clk 0:00:24.2]} 42... g5 {[%clk 0:01:23.4]} 43.
Kd3 {[%clk 0:00:19]} 43... h4 {[%clk 0:01:24.2]} 44. gxh4 {[%clk 0:00:20.3]}
44... gxh4 {[%clk 0:01:26.1]} 45. Ke3 {[%clk 0:00:21.7]} 45... h3 {[%clk
0:01:26.7]} 46. Kf3 {[%clk 0:00:23.4]} 46... a5 {[%clk 0:01:26.8]} 47. Kg3
{[%clk 0:00:24.8]} 47... a4 {[%clk 0:01:28.3]} 48. Kxh3 {[%clk 0:00:26.5]} 48...
b3 {[%clk 0:01:29.9]} 0-1

[Event "*** Titled Tuesday 3|2 Blitz"]
[Site "Chess.com"]
[Date "2016.10.04"]
[Round "4"]
[White "Po6Don"]
[Black "Iwannabetheguy"]
[Result "1/2-1/2"]
[WhiteElo "2074"]
[BlackElo "2006"]
[TimeControl "180+2"]
[EndTime "17:51:20 PDT"]
[Termination "Game drawn by agreement"]

1. e4 {[%clk 0:03:01.9]} 1... e5 {[%clk 0:03:00.5]} 2. Nf3 {[%clk 0:03:02.3]}
2... Nc6 {[%clk 0:03:02]} 3. d4 {[%clk 0:03:03.7]} 3... exd4 {[%clk 0:03:02]} 4.
Nxd4 {[%clk 0:03:05]} 4... Nf6 {[%clk 0:03:01.6]} 5. Nxc6 {[%clk 0:03:04.8]}
5... bxc6 {[%clk 0:03:01.6]} 6. Qe2 {[%clk 0:03:06.4]} 6... Qe7 {[%clk
0:02:53.5]} 7. Nc3 {[%clk 0:03:00.3]} 7... g6 {[%clk 0:02:50.4]} 8. Bg5 {[%clk
0:02:52.9]} 8... d6 {[%clk 0:02:46]} 9. f4 {[%clk 0:02:42.6]} 9... h6 {[%clk
0:02:43.3]} 10. Bh4 {[%clk 0:02:27]} 10... Qe6 {[%clk 0:02:33.3]} 11. e5 {[%clk
0:02:04]} 11... Nd5 {[%clk 0:02:29.2]} 12. Nxd5 {[%clk 0:02:02.2]} 12... cxd5
{[%clk 0:02:30]} 13. Bf6 {[%clk 0:01:50.5]} 13... Rg8 {[%clk 0:02:24]} 14. O-O-O
{[%clk 0:01:44.2]} 14... Bd7 {[%clk 0:02:13.7]} 15. Qd2 {[%clk 0:01:28.9]} 15...
Be7 {[%clk 0:02:08.7]} 16. Qxd5 {[%clk 0:01:19.2]} 16... Qxd5 {[%clk 0:02:09]}
17. Rxd5 {[%clk 0:01:21.1]} 17... Bxf6 {[%clk 0:02:03.4]} 18. exf6 {[%clk
0:01:22.1]} 18... Bc6 {[%clk 0:02:00.6]} 19. Rd2 {[%clk 0:00:40.8]} 19... Kd7
{[%clk 0:02:00.2]} 20. Bc4 {[%clk 0:00:41.8]} 20... Rgf8 {[%clk 0:01:52.8]} 21.
Re1 {[%clk 0:00:41.6]} 21... Rae8 {[%clk 0:01:51.8]} 22. Rde2 {[%clk 0:00:34.4]}
22... d5 {[%clk 0:01:45.9]} 23. Bd3 {[%clk 0:00:34.5]} 23... Kd6 {[%clk
0:01:42.3]} 24. h4 {[%clk 0:00:12]} 24... Rxe2 {[%clk 0:01:42.6]} 25. Rxe2
{[%clk 0:00:13.4]} 25... Re8 {[%clk 0:01:43]} 26. Rxe8 {[%clk 0:00:13.6]} 26...
Bxe8 {[%clk 0:01:44.9]} 27. f5 {[%clk 0:00:12.7]} 27... Ke5 {[%clk 0:01:42.6]}
28. fxg6 {[%clk 0:00:11.2]} 28... fxg6 {[%clk 0:01:43.6]} 29. Kd2 {[%clk
0:00:10.8]} 29... Kxf6 {[%clk 0:01:44.3]} 30. Ke3 {[%clk 0:00:12]} 30... c5
{[%clk 0:01:45.3]} 31. c3 {[%clk 0:00:12.3]} 31... Bd7 {[%clk 0:01:46.3]} 32.
Kf4 {[%clk 0:00:12.9]} 32... a5 {[%clk 0:01:45.2]} 33. a3 {[%clk 0:00:11.7]}
33... Be6 {[%clk 0:01:45.8]} 34. g3 {[%clk 0:00:11.2]} 34... g5+ {[%clk
0:01:46.9]} 35. hxg5+ {[%clk 0:00:11.9]} 35... hxg5+ {[%clk 0:01:48.2]} 36. Ke3
{[%clk 0:00:13.5]} 36... Ke5 {[%clk 0:01:49.3]} 37. Bc2 {[%clk 0:00:13.4]} 37...
d4+ {[%clk 0:01:49.5]} 38. cxd4+ {[%clk 0:00:14.1]} 38... cxd4+ {[%clk
0:01:51.1]} 39. Kd2 {[%clk 0:00:14]} 39... Bc4 {[%clk 0:01:50.3]} 40. b4 {[%clk
0:00:13.2]} 40... axb4 {[%clk 0:01:50]} 41. axb4 {[%clk 0:00:15.1]} 41... Bb5
{[%clk 0:01:49.1]} 42. Bd3 {[%clk 0:00:14.8]} 42... Ba4 {[%clk 0:01:45.1]} 43.
Kc1 {[%clk 0:00:11.4]} 43... Kd5 {[%clk 0:01:45.1]} 44. Kb2 {[%clk 0:00:12.1]}
44... Bd1 {[%clk 0:01:45.1]} 45. Ka3 {[%clk 0:00:11.1]} 45... Kc6 {[%clk
0:01:38.3]} 46. b5+ {[%clk 0:00:09.7]} 46... Kc5 {[%clk 0:01:37.5]} 47. b6
{[%clk 0:00:06.6]} 47... Kxb6 {[%clk 0:01:33.7]} 48. Kb4 {[%clk 0:00:08.2]}
48... Kc6 {[%clk 0:01:31.2]} 49. Kc4 {[%clk 0:00:09.6]} 49... Kd6 {[%clk
0:01:32.5]} 50. Kxd4 {[%clk 0:00:11]} 50... Ke6 {[%clk 0:01:34]} 51. Ke4 {[%clk
0:00:11.2]} 51... Kf6 {[%clk 0:01:34]} 52. Ke3 {[%clk 0:00:09.7]} 52... Bg4
{[%clk 0:01:34.5]} 1/2-1/2